bitfinex/quotes_SOLUSD_20250630
["timestamp","ask_amount","ask_price","bid_price","bid_amount"]
[1751301894200,0.1,157.13,157.12,52.632072]
[1751301894399,0.1,157.13,157.12,85.60286556]
[1751301895778,0.1,157.13,157.12,52.34774886]
[1751301896096,0.1,157.13,157.12,31.92208621]
[1751301896602,0.1,157.13,157.12,26.0]
[1751301896781,0.1,157.13,157.12,31.57433735]
[1751301897192,0.1,157.13,157.12,5.57433735]
[1751301900510,0.1,157.13,157.12,12.2232226]
[1751301901417,0.1,157.13,157.11,51.01446438]
[1751301901587,0.1,157.13,157.12,5.57433735]
[1751301902988,0.1,157.13,157.12,11.93889946]
[1751301903605,0.1,157.13,157.12,12.2232226]
[1751301904408,0.1,157.13,157.12,38.2232226]
[1751301904909,0.1,157.13,157.12,44.64964886]
[1751301905210,0.1,157.13,157.12,50.22398621]
[1751301905510,0.1,157.13,157.12,24.22398621]
[1751301906394,0.1,157.13,157.12,50.22398621]
[1751301906713,0.1,157.13,157.12,31.57433735]
[1751301907009,0.1,157.13,157.12,50.22398621]
[1751301907993,0.1,157.13,157.12,56.58854832]
[1751301908708,0.1,157.13,157.12,50.22398621]
[1751301909915,0.1,157.13,157.12,56.58854832]
[1751301912812,0.1,157.13,157.12,50.22398621]
[1751301914021,0.1,157.13,157.09,26.2]
[1751301914022,6.46415706,157.13,157.09,26.2]
[1751301914225,6.46415706,157.13,157.09,5.77433735]
[1751301916093,6.46415706,157.13,157.1,5.57433735]
[1751301916297,0.1,157.13,157.1,5.57433735]
[1751301917524,0.1,157.13,157.12,24.22398621]
[1751301918021,0.1,157.13,157.12,30.87287146]
[1751301919997,0.1,157.18,157.17,26.0]
[1751301920197,0.1,157.18,157.17,56.24398621]
[1751301922223,0.1,157.18,157.17,62.60652358]
[1751301922417,0.1,157.18,157.17,56.24398621]
[1751301924230,0.1,157.18,157.17,56.24398621]
[1751301924405,0.1,157.18,157.17,32.02]
[1751301925531,0.1,157.18,157.17,37.59433735]
[1751301925933,0.1,157.18,157.17,62.60652358]
[1751301926113,0.1,157.18,157.17,56.24398621]
[1751301927730,5.67433735,157.18,157.17,6.02]
[1751301927924,0.1,157.18,157.17,6.02]
[1751301928126,5.67433735,157.18,157.17,6.02]
[1751301928725,12.03646993,157.18,157.17,6.02]
[1751301928904,42.03646993,157.18,157.11,5.98]
[1751301929228,5.57433735,157.12,157.11,5.98]
[1751301929615,6.05128422,157.12,157.11,5.98]
[1751301929815,5.57433735,157.12,157.11,5.98]
[1751301930413,1.6212,157.13,157.11,5.98]
[1751301930611,30.0,157.12,157.11,5.98]
[1751301931532,5.57433735,157.13,157.11,5.98]
[1751301932817,5.57433735,157.14,157.11,5.98]
[1751301933231,11.93809755,157.14,157.11,5.98]
[1751301933810,5.57433735,157.13,157.11,5.98]
[1751301934007,5.57433735,157.12,157.11,5.98]
[1751301935237,41.93889946,157.12,157.11,5.98]
[1751301935428,36.36456211,157.12,157.11,5.98]
[1751301935618,41.93889946,157.12,157.11,5.98]
[1751301936533,35.57433735,157.12,157.11,5.98]
[1751301936724,5.57433735,157.12,157.11,5.98]
[1751301936918,11.93889946,157.12,157.11,5.98]
[1751301937119,5.57433735,157.12,157.11,5.98]
[1751301937434,5.57433735,157.14,157.11,5.98]
[1751301937622,12.41479432,157.15,157.11,5.98]
[1751301938211,5.57433735,157.13,157.11,5.98]
[1751301938620,5.57433735,157.14,157.11,5.98]
[1751301939844,11.93815983,157.14,157.11,5.98]
[1751301940249,5.57433735,157.14,157.11,5.98]
[1751301940630,5.57433735,157.15,157.11,12.34482652]
[1751301940832,5.57433735,157.17,157.12,5.57433735]
[1751301941012,5.57433735,157.16,157.12,5.57433735]
[1751301941425,6.36270991,157.17,157.12,5.57433735]
[1751301941736,5.57433735,157.16,157.11,11.55433735]
[1751301942033,5.57433735,157.15,157.11,17.91920143]
[1751301942540,5.57433735,157.15,157.11,11.55433735]
[1751301943510,11.93777326,157.15,157.11,11.55433735]
[1751301943936,6.36343591,157.15,157.11,11.55433735]
[1751301944619,6.36306838,157.16,157.12,5.57433735]
[1751301944821,6.9392355,157.18,157.13,5.57433735]
[1751301945038,12.03662598,157.18,157.13,5.57433735]
[1751301946027,5.57433735,157.17,157.12,25.01383342]
[1751301946221,5.57433735,157.17,157.13,5.57433735]
[1751301946623,5.57433735,157.17,157.11,12.34479985]
[1751301946819,5.57433735,157.17,157.12,5.57433735]
[1751301946820,6.05128422,157.17,157.12,5.57433735]
[1751301947026,5.57433735,157.16,157.11,11.55433735]
[1751301947448,5.57433735,157.15,157.11,11.55433735]
[1751301947618,11.93794801,157.15,157.11,11.55433735]
[1751301947817,0.47694687,157.17,157.11,11.55433735]
[1751301948019,0.1,157.18,157.14,26.0]
[1751301948448,0.1,157.18,157.15,26.0]
[1751301948449,5.67433735,157.18,157.15,26.0]
[1751301948746,5.67433735,157.18,157.16,26.0]
[1751301948747,0.1,157.18,157.16,26.0]
[1751301948947,0.1,157.18,157.16,5.57433735]
[1751301951058,0.1,157.18,157.16,11.93725084]
[1751301951552,0.1,157.18,157.16,6.36291349]
[1751301951745,0.1,157.18,157.16,11.93725084]
[1751301952248,0.1,157.18,157.16,5.57433735]
[1751301953252,0.1,157.18,157.14,5.57433735]
[1751301953253,12.03657281,157.18,157.14,5.57433735]
[1751301953545,12.03657281,157.18,157.13,26.0]
[1751301953863,12.03657281,157.18,157.12,18.64964886]
[1751301953864,6.05128422,157.17,157.12,5.57433735]
[1751301954028,5.57433735,157.17,157.12,5.57433735]
[1751301954224,0.1,157.18,157.14,5.57433735]
[1751301954541,12.41393662,157.17,157.12,5.57433735]
[1751301954844,12.41393662,157.17,157.12,18.64964886]
[1751301954845,6.3626524,157.17,157.12,18.64964886]
[1751301955031,6.3626524,157.17,157.13,5.57433735]
[1751301963658,6.3626524,157.17,157.12,5.57433735]
[1751301963659,11.93698975,157.17,157.12,5.57433735]
[1751301963958,5.57433735,157.16,157.11,11.55433735]
[1751301964173,5.57433735,157.13,157.11,5.98]
[1751301964338,6.05128422,157.12,157.09,0.2]
[1751301964536,0.47694687,157.15,157.09,5.77433735]
[1751301964773,6.36375206,157.14,157.1,5.57433735]
[1751301967564,11.93808941,157.14,157.09,31.77433735]
[1751301967866,11.93808941,157.14,157.09,26.2]
[1751301968062,11.93808941,157.14,157.09,5.77433735]
[1751301969861,11.93808941,157.14,157.1,5.57433735]
[1751301970647,11.93808941,157.14,157.09,6.56571078]
[1751301970648,5.57433735,157.13,157.09,0.2]
[1751301970853,5.57433735,157.13,157.09,5.77433735]
[1751301971139,11.93808941,157.14,157.09,5.77433735]
[1751301971551,5.57433735,157.14,157.09,12.14004599]
[1751301971754,5.57433735,157.15,157.1,5.57433735]
[1751301973163,6.36334712,157.15,157.11,5.57433735]
[1751301973658,11.93768447,157.15,157.11,5.57433735]
[1751301974052,11.93768447,157.15,157.1,5.57433735]
[1751301974238,6.05128422,157.14,157.09,5.77433735]
[1751301975056,6.36415706,157.13,157.09,5.77433735]
[1751301975370,6.36415706,157.13,157.09,38.14008581]
[1751301975574,5.57433735,157.15,157.1,5.57433735]
[1751301975784,11.93727957,157.16,157.11,5.57433735]
[1751301975945,11.93727957,157.16,157.12,5.57433735]
[1751301976464,6.36294222,157.16,157.09,32.56574846]
[1751301976669,5.57433735,157.15,157.11,5.57433735]
[1751301978062,11.93795418,157.15,157.11,5.57433735]
[1751301978369,6.36361683,157.15,157.1,11.93958946]
[1751301978536,5.57433735,157.14,157.1,11.93958946]
[1751301979460,11.93814694,157.14,157.1,5.57433735]
[1751301980472,11.93814694,157.14,157.09,12.13995372]
[1751301981661,5.57433735,157.13,157.09,6.56561637]
[1751301981862,5.57433735,157.13,157.09,12.13995372]
[1751301982867,6.36294222,157.16,157.11,5.57433735]
[1751301983039,5.57433735,157.15,157.11,5.57433735]
[1751301983245,5.57433735,157.14,157.1,5.57433735]
[1751301983771,5.57433735,157.14,157.09,12.13995372]
[1751301984280,11.93835723,157.14,157.09,12.13995372]
[1751301984776,5.57433735,157.13,157.09,5.77433735]
[1751301984968,5.57433735,157.12,157.09,0.2]
[1751301986163,11.93914851,157.12,157.09,0.2]
[1751301986364,5.57433735,157.11,157.09,0.2]
[1751301987158,5.57433735,157.1,157.09,0.2]
[1751301987455,5.57433735,157.11,157.09,0.2]
[1751301988176,11.93943485,157.11,157.09,0.2]
[1751301989586,5.57433735,157.1,157.09,0.2]
[1751301990764,11.93970972,157.1,157.09,0.2]
[1751301991172,5.57433735,157.11,157.09,0.2]
[1751301991476,6.05128422,157.11,157.09,0.2]
[1751301991681,5.57433735,157.1,157.09,0.2]
[1751301992175,0.47694687,157.11,157.09,0.2]
[1751301992363,11.93970972,157.1,157.09,0.2]
[1751301995227,0.47694687,157.12,157.09,5.77433735]
[1751301995370,5.57433735,157.14,157.1,5.57433735]
[1751301995565,6.84030029,157.15,157.09,0.2]
[1751301995566,5.57433735,157.12,157.09,0.2]
[1751301995882,5.57433735,157.11,157.09,0.2]
[1751301996469,6.36456211,157.12,157.09,0.2]
[1751301996785,11.93889946,157.12,157.09,0.2]
[1751301998680,5.57433735,157.1,157.09,0.2]
[1751301999978,0.47694687,157.11,157.09,0.2]
[1751302000307,11.93970972,157.1,157.09,0.2]
[1751302000711,5.57433735,157.11,157.09,0.2]
[1751302000999,6.36348357,157.15,157.1,5.57433735]
[1751302001169,6.36348357,157.15,157.11,5.57433735]
[1751302001371,30.0,157.12,157.1,5.57433735]
[1751302001872,11.93782092,157.15,157.1,5.57433735]
[1751302002487,5.57433735,157.14,157.09,6.56575129]
[1751302002880,5.57433735,157.14,157.1,5.57433735]
[1751302003797,15.93235099,157.16,157.1,7.87326902]
[1751302004095,21.50668834,157.16,157.11,5.57433735]
[1751302004299,15.14364316,157.16,157.11,5.57433735]
[1751302005674,15.14364316,157.16,157.11,11.93912531]
[1751302007276,15.14364316,157.16,157.12,5.57433735]
[1751302007475,15.14364316,157.16,157.12,5.94]
[1751302007476,9.56930581,157.16,157.12,5.94]
[1751302007682,9.56930581,157.16,157.14,5.57433735]
[1751302013592,15.93227991,157.16,157.14,5.57433735]
[1751302013798,9.56930581,157.16,157.14,5.57433735]
[1751302016282,9.56930581,157.16,157.15,5.57433735]
[1751302016712,9.56930581,157.16,157.13,25.01380592]
[1751302016900,9.56930581,157.16,157.15,5.57433735]
[1751302017511,0.1,157.18,157.17,44.64964886]
[1751302017747,18.10775808,157.21,157.18,18.64964886]
[1751302017748,8.83845228,157.21,157.18,18.64964886]
[1751302017890,8.83845228,157.21,157.2,33.17243735]
[1751302018092,0.1,157.26,157.21,18.64964886]
[1751302018295,0.1,157.26,157.25,5.57433735]
[1751302018496,30.1,157.26,157.24,5.57433735]
[1751302018800,30.1,157.26,157.21,44.64964886]
[1751302019000,0.1,157.26,157.23,5.57433735]
[1751302019184,0.1,157.26,157.24,5.57433735]
[1751302019399,0.1,157.26,157.25,5.57433735]
[1751302019693,0.1,157.26,157.24,5.57433735]
[1751302020309,0.1,157.26,157.25,5.57433735]
[1751302021216,0.1,157.26,157.25,24.22398621]
[1751302021792,0.1,157.26,157.25,30.58328668]
[1751302022026,0.1,157.26,157.25,32.42800982]
[1751302022320,0.1,157.26,157.25,26.85367247]
[1751302022491,0.1,157.26,157.25,32.42800982]
[1751302023096,0.1,157.26,157.25,51.78438621]
[1751302023319,0.1,157.26,157.25,58.14368668]
[1751302023728,0.1,157.26,157.25,51.78438621]
[1751302024015,0.1,157.26,157.24,6.6292]
[1751302024428,0.1,157.26,157.24,12.20353735]
[1751302026794,0.1,157.26,157.23,26.0]
[1751302027001,0.1,157.26,157.23,31.57433735]
[1751302028621,0.1,157.26,157.25,5.57433735]
[1751302028808,0.1,157.26,157.25,5.85866049]
[1751302029707,8.67948172,157.3,157.25,5.85866049]
[1751302029909,8.67948172,157.3,157.29,5.57433735]
[1751302030419,8.67948172,157.3,157.29,30.58166947]
[1751302030804,8.67948172,157.3,157.29,24.22398621]
[1751302032326,8.67948172,157.3,157.27,5.57433735]
[1751302032521,15.03680643,157.3,157.26,43.65213735]
[1751302032763,20.61114378,157.3,157.26,5.92]
[1751302033324,20.61114378,157.3,157.26,11.49433735]
[1751302033507,8.67948172,157.3,157.27,5.57433735]
[1751302033715,8.67948172,157.3,157.29,5.57433735]
[1751302033933,8.67948172,157.3,157.29,24.22398621]
[1751302034508,8.67948172,157.3,157.29,30.58166947]
[1751302036626,0.2,157.34,157.3,18.64964886]
[1751302036826,0.2,157.34,157.31,5.57433735]
[1751302038330,0.2,157.34,157.31,11.93108608]
[1751302039116,12.13000131,157.34,157.29,6.35751728]
[1751302039319,0.2,157.34,157.31,5.57433735]
[1751302039631,0.2,157.34,157.3,5.57433735]
[1751302040217,0.2,157.34,157.3,11.93138143]
[1751302041236,0.2,157.34,157.32,5.57433735]
[1751302041608,0.2,157.34,157.33,37.47433735]
[1751302041809,0.2,157.34,157.33,31.9]
[1751302042222,0.2,157.34,157.33,37.47433735]
[1751302042425,0.2,157.34,157.33,43.83040421]
[1751302042632,0.2,157.34,157.33,56.90571572]
[1751302042935,0.2,157.34,157.33,62.48005307]
[1751302043110,0.2,157.34,157.33,38.29167621]
[1751302043310,5.57433735,157.41,157.33,19.35770421]
[1751302043512,5.57433735,157.4,157.36,5.57433735]
[1751302043926,5.57433735,157.4,157.35,26.0]
[1751302043927,5.57433735,157.43,157.38,5.57433735]
[1751302044239,19.91922637,157.46,157.39,18.64964886]
[1751302044426,5.57433735,157.45,157.41,5.57433735]
[1751302044737,5.57433735,157.44,157.4,11.47433735]
[1751302045132,13.56806713,157.46,157.41,18.64964886]
[1751302045318,13.56806713,157.46,157.42,5.57433735]
[1751302045717,13.56806713,157.46,157.41,18.64964886]
[1751302045918,0.2,157.46,157.44,5.57433735]
[1751302046248,6.55097395,157.46,157.41,47.82950118]
[1751302046535,6.55097395,157.46,157.42,5.57433735]
[1751302046924,12.1253113,157.46,157.41,53.40383853]
[1751302047772,6.55097395,157.46,157.42,5.57433735]
[1751302048025,0.2,157.46,157.44,5.57433735]
[1751302048633,0.2,157.46,157.41,47.82950118]
[1751302048634,0.2,157.46,157.45,5.57433735]
[1751302048952,0.2,157.46,157.45,24.22398621]
[1751302049543,0.2,157.46,157.45,24.50830935]
[1751302050023,0.9820433,157.51,157.46,18.64964886]
[1751302050229,7.33092966,157.51,157.48,5.57433735]
[1751302051136,0.9820433,157.51,157.49,5.57433735]
[1751302052050,0.9820433,157.51,157.5,5.57433735]
[1751302052360,22.49978119,157.57,157.5,5.57433735]
[1751302052361,11.02513785,157.59,157.51,18.64964886]
[1751302052557,16.5994752,157.59,157.54,31.57433735]
[1751302052859,11.02513785,157.59,157.58,5.57433735]
[1751302053163,0.1,157.61,157.58,5.57433735]
[1751302053334,0.1,157.61,157.6,5.57433735]
[1751302053834,0.1,157.61,157.6,54.09127494]
[1751302054233,0.1,157.61,157.6,59.66561229]
[1751302054549,0.1,157.61,157.6,59.38128915]
[1751302054762,0.1,157.61,157.58,5.57433735]
[1751302054959,0.1,157.61,157.56,18.64964886]
[1751302054960,6.44484463,157.61,157.57,5.57433735]
[1751302055164,6.44484463,157.61,157.56,24.22398621]
[1751302055326,5.57433735,157.57,157.51,6.6222]
[1751302055526,5.57433735,157.54,157.52,5.88]
[1751302055951,8.21547785,157.53,157.52,5.88]
[1751302056137,0.28432314,157.52,157.45,5.88]
[1751302056450,8.21547785,157.47,157.45,5.88]
[1751302056835,22.22222221,157.5,157.45,5.88]
[1751302056836,8.21547785,157.48,157.45,5.88]
[1751302057541,6.34920634,157.5,157.46,8.21547785]
[1751302057764,14.56468419,157.5,157.46,8.21547785]
[1751302058054,14.56468419,157.5,157.45,14.09547785]
[1751302058860,8.21547785,157.46,157.45,5.88]
[1751302059156,8.21547785,157.47,157.45,5.88]
[1751302059329,0.47694687,157.49,157.45,5.88]
[1751302059531,8.21547785,157.49,157.45,5.88]
[1751302059731,8.21547785,157.48,157.45,5.88]
[1751302060432,6.35041595,157.47,157.45,5.88]
[1751302060772,14.5658938,157.47,157.45,5.88]
[1751302061750,6.35041595,157.47,157.45,5.88]
[1751302061950,14.56551168,157.48,157.45,5.88]
[1751302062640,8.21547785,157.5,157.45,5.88]
[1751302062850,8.21547785,157.5,157.45,14.09547785]
[1751302063056,8.21547785,157.5,157.45,5.88]
[1751302063057,0.47694687,157.5,157.45,5.88]
[1751302063234,6.82575012,157.51,157.45,14.09547785]
[1751302063441,8.21547785,157.5,157.45,14.09547785]
[1751302063636,8.21547785,157.48,157.45,5.88]
[1751302064343,14.56508734,157.49,157.45,5.88]
[1751302065460,8.21547785,157.48,157.45,5.88]
[1751302065658,8.21547785,157.47,157.45,5.88]
[1751302066450,8.21547785,157.49,157.45,5.88]
[1751302066652,14.56525599,157.49,157.45,5.88]
[1751302067865,8.21547785,157.48,157.45,5.88]
[1751302068460,7.90134976,157.48,157.45,5.88]
[1751302068837,14.25141905,157.48,157.45,5.88]
[1751302069037,8.21547785,157.47,157.45,5.88]
[1751302069253,8.21547785,157.46,157.45,5.88]
[1751302070567,14.5662971,157.46,157.45,5.88]
[1751302071275,6.35081925,157.46,157.45,5.88]
[1751302072579,6.35041595,157.47,157.45,5.88]
[1751302076241,8.21547785,157.46,157.45,5.88]
[1751302076765,14.5662971,157.46,157.45,5.88]
[1751302076972,14.5662971,157.46,157.4,5.88]
[1751302076973,30.9202921,157.46,157.4,5.88]
[1751302077183,22.70481425,157.46,157.4,5.88]
[1751302077345,8.21547785,157.41,157.4,5.88]
[1751302078448,8.21547785,157.44,157.4,14.09547785]
[1751302078663,8.21547785,157.43,157.4,5.88]
[1751302078852,8.21547785,157.42,157.4,5.88]
[1751302079256,8.21547785,157.43,157.4,5.88]
[1751302080254,8.69242472,157.44,157.4,5.88]
[1751302080457,8.69242472,157.44,157.4,12.23319856]
[1751302080887,6.82695957,157.48,157.43,8.21547785]
[1751302081087,15.04243742,157.48,157.43,8.21547785]
[1751302081782,15.92527172,157.49,157.42,1.5088]
[1751302081967,15.92527172,157.49,157.32,6.6234]
[1751302081968,26.0,157.45,157.32,6.6234]
[1751302082279,8.21547785,157.35,157.32,6.6234]
[1751302082450,8.21547785,157.33,157.31,5.88]
[1751302082950,8.21547785,157.32,157.31,5.88]
[1751302083351,15.888286,157.35,157.31,5.88]
[1751302083352,8.21547785,157.34,157.31,5.88]
[1751302083558,8.21547785,157.33,157.31,5.88]
[1751302083880,8.21547785,157.32,157.31,5.88]
[1751302084980,22.24906236,157.31,157.27,5.88]
[1751302085184,8.21547785,157.28,157.27,5.88]
[1751302085482,0.47694687,157.3,157.27,5.88]
[1751302085483,8.21547785,157.29,157.27,5.88]
[1751302085861,8.21547785,157.28,157.27,5.88]
[1751302086581,0.47694687,157.3,157.27,5.88]
[1751302086782,8.21547785,157.28,157.27,5.88]
[1751302087254,14.57356533,157.28,157.27,5.88]
[1751302090684,6.35808748,157.28,157.27,5.88]
[1751302090885,14.57356533,157.28,157.27,5.88]
[1751302092094,14.57356533,157.28,157.22,46.24434886]
[1751302092400,14.57356533,157.28,157.23,5.88]
[1751302092401,8.21547785,157.25,157.23,5.88]
[1751302092586,14.57485513,157.25,157.23,5.88]
[1751302093292,8.21547785,157.25,157.23,5.88]
[1751302093804,14.57480981,157.25,157.23,5.88]
[1751302094097,8.21547785,157.26,157.23,5.88]
[1751302094478,14.5739733,157.27,157.23,5.88]
[1751302095506,8.21547785,157.26,157.23,5.88]
[1751302096000,14.5739733,157.27,157.23,5.88]
[1751302096309,8.21547785,157.27,157.24,18.64964886]
[1751302096500,14.57405778,157.27,157.24,18.64964886]
[1751302097506,8.21547785,157.25,157.23,5.88]
[1751302097680,8.21547785,157.24,157.23,5.88]
[1751302098987,14.57518275,157.24,157.23,5.88]
[1751302101683,30.47444502,157.24,157.18,7.4932]
[1751302101883,8.21547785,157.21,157.18,7.4932]
[1751302102378,8.21547785,157.21,157.18,1.6132]
[1751302102583,8.21547785,157.21,157.18,7.4932]
[1751302102808,8.21547785,157.21,157.18,5.88]
[1751302103518,8.21547785,157.2,157.18,5.88]
[1751302103679,8.21547785,157.19,157.18,5.88]
[1751302104504,8.21547785,157.2,157.18,5.88]
[1751302104887,6.36094838,157.21,157.18,5.88]
[1751302104888,8.21547785,157.21,157.18,5.88]
[1751302105103,51.99461515,157.24,157.19,26.86512671]
[1751302105104,9.59440187,157.24,157.19,26.86512671]
[1751302105302,17.80987972,157.24,157.2,8.21547785]
[1751302105488,24.16972798,157.24,157.2,8.21547785]
[1751302105688,24.16972798,157.24,157.19,18.64964886]
[1751302105997,24.16972798,157.24,157.19,26.86512671]
[1751302106802,8.21547785,157.23,157.19,18.64964886]
[1751302106997,8.21547785,157.2,157.18,5.88]
[1751302107204,6.36172784,157.19,157.18,5.88]
[1751302107613,14.57720569,157.19,157.18,5.88]
[1751302109411,14.57720569,157.19,157.14,7.3945]
[1751302109595,8.21547785,157.17,157.14,7.3945]
[1751302109990,8.21547785,157.17,157.14,5.88]
[1751302111297,6.36253737,157.17,157.14,5.88]
[1751302111497,14.57801522,157.17,157.14,5.88]
[1751302111702,8.21547785,157.16,157.14,5.88]
[1751302111900,14.57801522,157.17,157.14,5.88]
[1751302112413,14.57801522,157.17,157.09,0.2]
[1751302112414,8.21547785,157.15,157.09,0.2]
[1751302112620,8.21547785,157.12,157.09,0.2]
[1751302112925,8.21547785,157.1,157.09,0.2]
[1751302113289,14.58085022,157.1,157.09,0.2]
[1751302113814,6.84192963,157.11,157.09,0.2]
[1751302114028,6.36498276,157.11,157.09,0.2]
[1751302114195,14.58018789,157.12,157.09,0.2]
[1751302114396,15.05673436,157.13,157.09,0.2]
[1751302114718,8.21547785,157.1,157.09,0.2]
[1751302115419,14.58085022,157.1,157.09,0.2]
[1751302118215,16.38733953,157.13,157.09,0.2]
[1751302118432,8.21547785,157.11,157.09,0.2]
[1751302119000,8.21547785,157.12,157.09,0.2]
[1751302120018,14.58003996,157.12,157.09,0.2]
[1751302121204,6.36430899,157.13,157.09,8.41547785]
[1751302121808,6.36430899,157.13,157.09,0.2]
[1751302121999,6.36430899,157.13,157.09,8.41547785]
[1751302122000,14.57978684,157.13,157.09,8.41547785]
[1751302123430,14.57978684,157.13,157.09,0.2]
[1751302123804,0.47694687,157.15,157.09,27.06512671]
[1751302124123,7.97800724,157.16,157.13,8.21547785]
[1751302124338,7.97800724,157.16,157.14,8.21547785]
[1751302125228,7.97800724,157.16,157.15,32.74512671]
[1751302126925,7.97800724,157.16,157.15,39.10847383]
[1751302127229,7.97800724,157.16,157.15,32.74512671]
[1751302127429,7.97800724,157.16,157.15,39.10847383]
[1751302127610,7.97800724,157.16,157.15,32.74512671]
[1751302129828,7.97800724,157.16,157.09,0.2]
[1751302129829,1.6106,157.15,157.09,0.2]
[1751302130016,27.01694687,157.14,157.09,0.2]
[1751302130215,8.21547785,157.11,157.09,0.2]
[1751302130420,6.36537237,157.1,157.09,0.2]
[1751302131027,14.58085022,157.1,157.09,0.2]
[1751302132037,6.36537237,157.1,157.09,0.2]
[1751302132214,14.58053238,157.11,157.09,0.2]
[1751302132418,6.36505453,157.11,157.09,0.2]
[1751302132612,8.21547785,157.1,157.09,0.2]
[1751302134638,14.58085022,157.1,157.09,0.2]
[1751302135011,8.21547785,157.1,157.09,0.2]
[1751302135409,8.21547785,157.11,157.09,0.2]
[1751302136223,17.51980279,157.15,157.1,18.64964886]
[1751302136224,0.47694687,157.15,157.1,18.64964886]
[1751302136433,0.47694687,157.15,157.1,32.90962671]
[1751302136434,8.21547785,157.15,157.1,32.90962671]
[1751302136719,14.81797961,157.16,157.12,18.64964886]
[1751302136720,16.19348509,157.16,157.12,18.64964886]
[1751302137326,22.55646266,157.16,157.12,26.86512671]
[1751302137915,22.55646266,157.16,157.12,18.64964886]
[1751302140337,7.97800724,157.16,157.12,25.01407477]
[1751302140641,14.34098719,157.16,157.12,26.86512671]
[1751302140830,8.21547785,157.15,157.12,18.64964886]
[1751302141221,8.21547785,157.14,157.11,26.0]
[1751302141419,8.21547785,157.14,157.1,14.25997785]
[1751302141618,8.21547785,157.13,157.1,6.0445]
[1751302141844,8.21547785,157.12,157.09,0.2]
[1751302142144,8.21547785,157.13,157.09,0.2]
[1751302142334,14.57882497,157.15,157.1,8.21547785]
[1751302143350,8.21547785,157.15,157.11,18.64964886]
[1751302144638,8.21547785,157.15,157.11,25.01455988]
[1751302145029,8.21547785,157.15,157.11,18.64964886]
[1751302146825,14.57897946,157.15,157.11,18.64964886]
[1751302147239,8.21547785,157.14,157.09,33.43087837]
[1751302147548,0.47694687,157.13,157.09,0.2]
[1751302147744,6.36350161,157.15,157.11,18.64964886]
[1751302147745,14.57897946,157.15,157.11,18.64964886]
[1751302147948,14.57897946,157.15,157.09,0.2]
[1751302147949,8.21547785,157.14,157.09,8.41547785]
[1751302148248,8.21547785,157.12,157.09,0.2]
[1751302149336,8.21547785,157.11,157.09,0.2]
[1751302149663,8.21547785,157.12,157.09,0.2]
[1751302150732,6.36496722,157.11,157.09,0.2]
[1751302150942,14.58044507,157.11,157.09,0.2]
[1751302151332,6.36496722,157.11,157.09,0.2]
[1751302152651,14.58044507,157.11,157.09,0.2]
[1751302153055,6.36496722,157.11,157.09,0.2]
[1751302154946,6.36351788,157.15,157.1,26.86512671]
[1751302155151,6.36351788,157.15,157.11,8.21547785]
[1751302155455,14.34107485,157.16,157.12,8.21547785]
[1751302156454,22.5565527,157.16,157.11,8.21547785]
[1751302157231,14.34107485,157.16,157.12,8.21547785]
[1751302157453,22.5565527,157.16,157.12,18.64964886]
[1751302157652,22.5565527,157.16,157.1,18.64964886]
[1751302157653,8.21547785,157.14,157.1,18.64964886]
[1751302157871,8.21547785,157.13,157.09,34.41547785]
[1751302158358,8.21547785,157.13,157.09,8.41547785]
[1751302158548,8.21547785,157.11,157.09,0.2]
[1751302159359,8.21547785,157.1,157.09,0.2]
[1751302159857,6.36375206,157.14,157.09,8.41547785]
[1751302160041,6.36375206,157.14,157.1,26.86512671]
[1751302160241,14.57922991,157.14,157.1,18.64964886]
[1751302160454,14.57922991,157.14,157.09,8.41547785]
[1751302161440,6.36375206,157.14,157.1,8.21547785]
[1751302161738,14.57922991,157.14,157.09,27.06512671]
[1751302161939,14.57922991,157.14,157.09,33.43089576]
[1751302164167,14.57882497,157.15,157.1,8.21547785]
[1751302164369,8.21547785,157.14,157.09,18.84964886]
[1751302164551,8.21547785,157.14,157.09,27.06512671]
[1751302165272,8.21547785,157.13,157.09,0.2]
[1751302165584,8.21547785,157.11,157.09,0.2]
[1751302166160,6.36537237,157.1,157.09,0.2]